Cogmind - Beta 14 @@@ ROGUE MODE // 2024.08.11 @ 04:11:39 Player: Lord_Devi Result: Destroyed by FP-PZ3(R) with Subdweller Laser Performance ------------- Evolutions (0) 0 Regions Visited (1) 200 Robots Destroyed (14) 70 Value Destroyed (197) 197 Prototype IDs (0) 0 Alien Tech Used (0) 0 Bonus (0) 0 TOTAL SCORE: 467 Bonus ------- None Cogmind --------- Core Integrity 0/250 Matter 196/300 Energy 125/125 System Corruption 2% Temperature Cool (6) Movement Core (450) Ox8 Location -10/Materials Parts ------- > --- POWER (1) -------- Light Ion Engine > --- PROPULSION (2) --- (None) > --- UTILITY (2) ------ Large Storage Unit Seismic Detector > --- WEAPON (2) ------- Small Laser Light Assault Rifle > --- INVENTORY (15) --- Light Ion Engine Small Storage Unit Light Assault Rifle Grenade Launcher Datajack Hammer Peak State ------------ > --- POWER ------------ Light Ion Engine > --- PROPULSION ------- Light Treads Light Treads > --- UTILITY ---------- Small Storage Unit Seismic Detector > --- WEAPON ----------- EM Pulse Gun Light Assault Rifle > --- INVENTORY -------- Light Ion Engine Small Laser Grenade Launcher [Rating: 7] Favorites ----------- Power Light Ion Engine Engine Light Ion Engine Propulsion Light Treads Treads Light Treads Utility Small Storage Unit Device Seismic Detector Storage Small Storage Unit Weapon EM Pulse Gun Energy Gun EM Pulse Gun Ballistic Gun Light Assault Rifle Launcher Grenade Launcher Build | -11 -10 ------- Run | Yrd Mat Slots Evolved . | . . Power . | . . Propulsion . | . . Utility . | . . Weapon . | . . Parts Attached 13 | 5 8 Power 2 | 1 1 Engine 2 | 1 1 Core . | . . Reactor . | . . Propulsion 2 | 2 . Treads 2 | 2 . Leg . | . . Wheel . | . . Hover . | . . Flight . | . . Utility 3 | 1 2 Device 1 | . 1 Storage 2 | 1 1 Processor . | . . Hackware . | . . Protection . | . . Artifact . | . . Weapon 6 | 1 5 Energy Gun 4 | 1 3 Energy Cannon . | . . Ballistic Gun 1 | . 1 Ballistic Cannon . | . . Launcher 1 | . 1 Special Weapon . | . . Impact Weapon . | . . Slashing Weapon . | . . Piercing Weapon . | . . Special Melee Weapon . | . . Unidentified Prototypes . | . . Parts Lost 4 | . 4 Power 1 | . 1 Propulsion 2 | . 2 Utility . | . . Weapon 1 | . 1 Highest Loss Streak 2 | . 2 To Critical Strikes 1 | . 1 Average Slot Usage (%) 89 | . 89 Engine 13 | . 13 Treads 24 | . 24 Device 8 | . 8 Storage 14 | . 14 Energy Gun 16 | . 16 Ballistic Gun 10 | . 10 Peak Build Rating 7 | 5 7 Average Rating 6 | 3 6 On Entrance 2 | . 5 Naked Turns . | . . Heaviest Build 27 | 10 27 Greatest Support 40 | 40 40 Greatest Overweight (x) 8 | . 8 Average Overweight (x) . | . . Largest Inventory Capacity 15 | 8 15 Average Capacity 10 | 7 10 Most Carried 7 | 2 7 Average Carried 4 | . 4 Final Capacity 15 | 8 15 Final Carried 6 | 1 6 Class Distribution -------------------- 100% | Mutant Dominant Class ---------------- Mutant | -10/Materials Resources | -11 -10 ----------- Run | Yrd Mat Matter Collected 300 | 183 117 Remotely . | . . Salvage Created 147 | . 147 Parts 25 | . 25 Haulers Intercepted . | . . Recyclers Shooed 1 | . 1 Parts Field Recycled . | . . Retrieved Matter . | . . Parts Self-Destructed . | . . Prevented . | . . Kills | -11 -10 ------- Run | Yrd Mat Combat Hostiles Destroyed 10 | . 10 Guns 7 | . 7 AOE 3 | . 3 Classes Destroyed 5 | . 5 Builder 1 | . 1 Operator 1 | . 1 Watcher 2 | . 2 Swarmer 9 | . 9 Grunt 1 | . 1 Best Kill Streak 6 | . 6 Combat Bots Only 4 | . 4 Max Kills in Single Turn 3 | . 3 Gunslinging . | . . Exploded 2 | . 2 Melee . | . . Uniques/NPCs Destroyed . | . . Combat | -11 -10 -------- Run | Yrd Mat Hostile Shots Fired 86 | . 86 Missed 30 | . 30 Damage Taken 757 | . 757 Core 267 | . 267 Absorbed by Shields . | . . Core Remaining (%) 100 | 100 . Volleys Fired 44 | . 44 Largest 2 | . 2 Hottest 80 | . 80 Shots Fired 82 | . 82 Gun 77 | . 77 Cannon . | . . Launcher 5 | . 5 Special . | . . Kinetic 25 | . 25 Thermal 25 | . 25 Explosive 5 | . 5 Electromagnetic 27 | . 27 Robot Hit Streak 5 | . 5 Robot Miss Streak 6 | . 6 Penetration Max . | . . Secondary Targets . | . . Shots Hit Robots 31 | . 31 Core Hits 19 | . 19 Critical Kills . | . . Critical Parts Destroyed . | . . Critical Strikes 2 | . 2 Corrupt 2 | . 2 Melee Attacks . | . . Impact . | . . Slashing . | . . Piercing . | . . Sneak Attacks . | . . Combat Hostiles . | . . Follow-up Attacks . | . . Damage Inflicted 808 | . 808 Guns 362 | . 362 Cannons . | . . Explosions 446 | . 446 Melee . | . . Ramming . | . . Kinetic 105 | . 105 Thermal 161 | . 161 Explosive 394 | . 394 Electromagnetic 148 | . 148 Impact . | . . Slashing . | . . Piercing . | . . Highest Corruption 2 | . 2 Average Corruption 2 | . 2 Corruption Purged . | . . Corruption Blocked . | . . Effects 8 | . 8 Message Errors 2 | . 2 Matter Fused 2 | . 2 Heat Flow Errors 1 | . 1 Energy Discharges 1 | . 1 Data Loss (minor) 1 | . 1 Misfires 1 | . 1 Overload Shots . | . . Overflow Damage 26 | . 26 Projectiles . | . . Explosions 26 | . 26 Melee . | . . Knockbacks . | . . Impact . | . . Kinetic . | . . Secondary . | . . Self-Inflicted Damage 30 | . 30 Shots 1 | . 1 Rammed . | . . Targets Rammed . | . . Kicked . | . . Crushed . | . . Highest Temperature 179 | . 179 Average Temperature 29 | . 29 Received Heat Transfer 72 | . 72 Siege Activations . | . . Robots Corrupted . | . . Combat Hostiles . | . . Parts Fried . | . . Impact Corruptions . | . . Robots Melted . | . . Combat Hostiles . | . . Parts Melted 1 | . 1 Heat Transferred 400 | . 400 Parts Sabotaged . | . . Parts Stolen . | . . Parts Stripped . | . . Power Chain Reactions 2 | . 2 Alert | -11 -10 ------- Run | Yrd Mat Peak Influence 295 | . 295 Initial . | . . Average 165 | . 179 Maximum Alert Level 1 | . 1 Low Security (%) 59 | 100 56 Level 1 40 | . 43 Level 2 . | . . Level 3 . | . . Level 4 . | . . Level 5 . | . . High Security . | . . Max Security . | . . Squads Dispatched 1 | . 1 Investigation . | . . Extermination . | . . Reinforcement 1 | . 1 Assault . | . . Garrison . | . . Intercept . | . . Searches Triggered . | . . Construction Impeded . | . . Haulers Reinforced . | . . Active Scanning Responses . | . . Cargo Convoy Interrupts . | . . Stealth | -11 -10 --------- Run | Yrd Mat Distress Signals 2 | . 2 Communications Jammed . | . . Distress Signals . | . . Times Spotted 25 | . 25 Peak Tracking Total 5 | . 5 Tactical Retreats 2 | . 2 Traps | -11 -10 ------- Run | Yrd Mat Traps Triggered 1 | . 1 Indirectly . | . . Trap Hack Attempts . | . . Triggered . | . . Disarmed . | . . Reprogrammed . | . . Reused . | . . Traps Extracted . | . . Installed . | . . Triggered . | . . Machines | -11 -10 ---------- Run | Yrd Mat Machines Disabled 2 | . 2 Max in Single Turn 1 | . 1 Machines Repaired . | . . Machines Dismantled . | . . Machines Sabotaged . | . . Overloaded Fab Kills . | . . Hacking | -11 -10 --------- Run | Yrd Mat Machines Accessed 3 | . 3 Terminals 2 | . 2 Fabricators . | . . Repair Stations . | . . Recycling Units 1 | . 1 Scanalyzers . | . . Garrison Access . | . . Total Hacks 6 | . 6 Successful 3 | . 3 Failed 3 | . 3 Catastrophic . | . . Database Lockouts . | . . Manual . | . . Terminals 4 | . 4 Fabricators . | . . Repair Stations . | . . Recycling Units 2 | . 2 Scanalyzers . | . . Garrison Access . | . . Terminal Hacks 2 | . 2 Robot Analysis 1 | . 1 Zone Layout 1 | . 1 Fabricator Hacks . | . . Repair Station Hacks . | . . Recycling Unit Hacks 1 | . 1 Report Inventory 1 | . 1 Scanalyzer . | . . Garrison Access Hacks . | . . Unauthorized Hacks . | . . Terminals . | . . Fabricators . | . . Repair Stations . | . . Recycling Units . | . . Scanalyzers . | . . Garrison Access . | . . Data Cores Recovered 1 | . 1 Used 1 | . 1 Hacking Detections 1 | . 1 Full Trace Events . | . . Feedback Events . | . . Feedback Blocked . | . . Robot Schematics Acquired . | . . Robots Built . | . . Authchips . | . . Time . | . . Total Robot Build Rating . | . . Part Schematics Acquired . | . . Parts Built . | . . Authchips . | . . Time . | . . Total Part Build Rating . | . . Parts Repaired . | . . Time . | . . Parts Recycled . | . . Recycled Matter . | . . Retrieved Matter . | . . Retrieved Components . | . . Parts Scanalyzed . | . . Part Schematics Acquired . | . . Parts Damaged . | . . Bothacking | -11 -10 ------------ Run | Yrd Mat Used RIF Installer . | . . Robots Hacked . | . . Non-combat . | . . Combat . | . . Robot Hacks Applied . | . . Relay Couplers Released . | . . Fabnet Peak Effective % . | . . Robots Rewired . | . . Allies Hacked . | . . Hacks Repelled . | . . Allies | -11 -10 -------- Run | Yrd Mat Total Allies . | . . Largest Group . | . . Highest-Rated Group . | . . Highest-Rated Ally . | . . Total Orders . | . . Ally Attacks . | . . Total Damage . | . . Kills . | . . Allies Corrupted . | . . Allies Melted . | . . Intel | -11 -10 ------- Run | Yrd Mat Robot Analysis Total 1 | . 1 Derelict Logs Recovered . | . . Drone Launches . | . . Drone Recoveries . | . . Exploration | -11 -10 ------------- Run | Yrd Mat Turns Passed 795 | 60 735 Spaces Moved 340 | 34 306 Core 10 | 4 6 Treads 330 | 30 300 Legs . | . . Wheels . | . . Hover . | . . Flight . | . . Fastest Speed 50 | 50 160 Average Speed 175 | 147 178 Slowest Speed 450 | 160 450 Overloaded Moves . | . . Propulsion Burnouts . | . . Robots Hopped . | . . Cave-ins Triggered . | . . Exploration Rate (%) 28 | 3 53 Regions Visited 1 Branch Regions . Pre-discovered Areas . | . . Known Exits Taken . | . . Unknown Exits Taken 1 | 1 . Scrap Searched . | . . Spaces Dug . | . . Terrain Destroyed 14 | . 14 Melee . | . . Projectile . | . . AOE 14 | . 14 Terrain Rammed . | . . Walls Destroyed . | . . Machines Disabled . | . . Actions | -11 -10 --------- Run | Yrd Mat Total 464 | 44 420 Wait 53 | . 53 Move 339 | 33 306 Hop . | . . Pick Up 15 | 6 9 Fast Attach . | . . Attach 9 | 5 4 Detach . | . . Swap 4 | . 4 Drop . | . . Fire 44 | . 44 Melee . | . . Ram . | . . Kick . | . . Crush . | . . Escape Stasis . | . . Rewire . | . . Trap . | . . Miscellaneous . | . . Route ------- -11/Scrapyard -10/Materials (discovered 1 exit: [*Mat]) History --------- Turn | Location | Event 4 | -11/Scrapyard | Discovered new exit (range 15) 61 | -11/Scrapyard | Entered Materials 302 | -10/Materials | Build established: Mutant 445 | -10/Materials | Discovered new exit (range 15) 661 | -10/Materials | Derelicts attacked the area 774 | -10/Materials | Core integrity fell below 50% 775 | -10/Materials | Core integrity fell below 20% 796 | -10/Materials | Destroyed by FP-PZ3(R) with Subdweller Laser Last Messages --------------- 00656_ System corrupted: Component data lost. 00661_ ALERT: Derelict incursion detected, dispatching patrols to target area. 00683_ :=IOFXVOG0GA%PS#%ZUZHCVHUZTWZUDS 00708_ Acquired 9 matter. 00715_ Acquired 8 matter. 00769_ Lgt. Treads destroyed. 00778_ Lgt. Ion Engine destroyed. 00779_ NK-RAF(R) destroyed. 00784_ System corrupted: Matter fused (-10). 00784_ R-06 Scavenger collects Lgt. Ion Engine. 00784_ U-05 Engineer lays Concrete. 00788_ QW-IBD(R) destroyed. 00788_ U-05 Engineer lays Concrete. 00789_ R-06 Scavenger collects Sub. Monowheel. 00789_ U-05 Engineer lays Concrete. 00792_ U-05 Engineer builds a Door. 00795_ FP-PZ3(R) affixes Scrap Shield Fragment to Scrap Shield. 00796_ U-05 Engineer builds a Wall. Map ----- +----------------------------------------------------+ | | | | | ????????????????????????????#############????????? | | ????????????????????????????# #????????? | | ????????????????????????????# #????????? | | ????????????????????????????# #????????? | | ???####################?????# """ """ ########## | | ???# # # T #?????# """ """ + ^ = | | ???# # # #?????# """ """ #### | | ???# # # """ #?????# #??# | | ???# # + """ ########+###+######### !!! | | ???# # # """ # # !!!! | | ???# + # # "" # ^ !! | | ???# # ######## Y" + ! """ ^ | | ???# # # # "" # """ ^ | | ???# # # """ # # """ """ | | ???# # # """ ######## "" """ | | ???# # [+*""" #??##### T """ | | ???######### # #??# k " | | ???????????# # #??# k | | ???????????# =[########??# #### | | ???????????# %#?????????# ##??# | | ???????????# =#?????????# #???# | | ???????????# #?????????# #???# | | ???????????# ########### #???# | | ???????????# ## ; @ #???# | | ???????????# ## ####### #???# | | ?????????##" ## u #?????# #???# | | ?????????# " ## m ;+#;#+#####?# #???# | | ?????????# " "# r #?# #???# | | ?????????# " #?# #####+## | | ?????????# && #?# # = # | | ????????# " &%& #?# # "" # | | ????????## " R #?# #= T # | | ?????????### % #?# # " # | | ??????????# ;;;; ;;################ +[ %[ # | | ????????"# ?????# # # * # | | ?????? !!! """ ????# """ # ######## | | ?????? [ !!! """ #???# """ # #### | | ?????? |=% !! """ #???# """ # #??# " | | ????? ###" %* ? #???# +^ #??# " | | ????????# * ] ???#???# """ # #??# " | | ????????# | ???????# """ # #??# | | ?????????? " "" ???????# """ # #??# " | | ????????????# ########???????# # #??# " | | ????????????# ???????????????########## #??# " | | ????????????# ????????????????????????# #??# | | ????????????? ????????????????????????# #??##### | | ????????????? ????????????????????????# #????# | | ????????????? ????????????????????????# #????# | +----------------------------------------------------+ Best States ------------- Heat Dissipation 25 Energy Generation 10 Energy Capacity 125 Matter Stores 273 Matter Capacity 300 Sight Range 16 Terrain Scan Density 10 Evasion (%) 40 Recoil Reduction 2 Item Schematics ----------------- None Robot Schematics ------------------ None Fabricated ------------ Nothing Alien Tech Used ----------------- None Achievements -------------- None Challenges ------------ None Game ------ Seed ThermicCombatAccelerator Manual? 0 Play Time 00:14:40 Cumulative 27.7 hours Start 2024.08.11 @ 03:44:00 End 2024.08.11 @ 04:11:39 Sessions 1 Manual Loads 0 Difficulty Rogue Special Mode None Game No. 24 Rogue 24 Adventurer 0 Explorer 0 Win Type - Total 0 Types 0/0/0/0/0/0/0/0/0 Lore% 10 Gallery% 17 Achievement% 19 Wizard Run 0 Options --------- Layout 1 ASCII 0 Keyboard 0 Movement Mouse Keybinds 0 Fullscreen 2 Font 48/Smallcaps Map View 50x35 Zoom Use 0% Tactical HUD 1 Map Filters NONE Filters NONE Steam 1 RUN: 52c357e7-4d73-4782-9b9f-75490e298e5c